Workbook

Sheet EXT
A2: Zvolte jazyk | F2: =Translation!A3 -> Ogólna | J2: =Translation!A6 -> Brama bez napędu | L2: =Translation!A7 -> Brama z napędem | U2: H | V2: =Translation!A24 -> Wysokość otworu budowlanego [mm]
A3: Select a language | F3: =Translation!A4 -> wysokość [mm] | G3: FOH | H3: D | I3: K | J3: min. CEL | K3: CPH | L3: =J3 -> min. CEL | M3: =K3 -> CPH | N3: X | P3: E1 | R3: E2 | U3: GH | V3: =Translation!A3&" "&Translation!A4 -> Ogólna wysokość [mm]
A4: Wählen Sie eine Sprache: | D4: PL | F4: GH | G4: GH + 0 | H4: GH + 575 | I4: GH - 35 | J4: GH + 100 | K4: GH - 350 | L4: GH + 125 | M4: GH - 0 | N4: GTA 71x | O4: RUN 600 | P4: =N4 -> GTA 71x | Q4: =O4 -> RUN 600 | R4: =P4 -> GTA 71x | S4: RUN 600 | U4: FOH | V4: =Translation!A9 -> Wysokość do dolnej krawędzi profilu nadproża [mm]
A5: Wybierz język: | F5: 1875 | G5: =F5+0 -> 1875 | H5: =F5+575 -> 2450 | I5: =F5-35 -> 1840 | J5: =F5+100 -> 1975 | K5: =F5-350 -> 1525 | L5: =J5+(35-10) -> 2000 | M5: =F5 -> 1875 | N5: 3540 | O5: 3100 | P5: 1400 | R5: 3350 | S5: 2950 | U5: D | V5: =Translation!A12 -> Głębokość prowadzenia [mm]
A6: Sélectionner une langue: | F6: 2000 | G6: =F6+0 -> 2000 | H6: =F6+575 -> 2575 | I6: =F6-35 -> 1965 | J6: 2100 | K6: =F6-350 -> 1650 | L6: 2125 | M6: =F6 -> 2000 | U6: K | V6: =Translation!A16 -> Dolna krawędź prowadzenia poziomego [mm]
A7: Kies een taal: | F7: 2125 | G7: =F7+0 -> 2125 | H7: 2700 | I7: 2090 | J7: 2225 | K7: 1775 | L7: 2250 | M7: 2125 | U7: CEL | V7: =Translation!A8 -> Wysokość stropu [mm]
F8: 2250 | G8: 2250 | H8: 2825 | I8: 2215 | J8: 2350 | K8: 1900 | L8: 2375 | M8: 2250 | O8: =N10 -> 4240 | S8: =R10 -> 4060 | U8: CPH | V8: =Translation!A10 -> Dolna krawędź w pełni otwartej bramy [mm]
F9: 2375 | G9: 2375 | H9: 2950 | I9: 2340 | J9: 2475 | K9: 2025 | L9: 2500 | M9: 2375 | U9: X | V9: =Translation!A14 -> Długość napędu [mm]
F10: 2500 | G10: 2500 | H10: 3075 | I10: 2465 | J10: 2600 | K10: 2150 | L10: 2625 | M10: 2500 | N10: 4240 | R10: 4060 | U10: E1 | V10: =Translation!A18 -> Punkt uchwycenia szyny napędu [mm]
F11: 2625 | G11: =F11+0 -> 2625 | H11: 3200 | I11: 2590 | J11: 2725 | K11: 2275 | L11: 2750 | M11: 2625 | U11: E2 | V11: =Translation!A20 -> Punkt uchwycenia napędu [mm]
U12: Z | V12: =Translation!A31 -> Położenie gniazda około 250 mm
A13: Z | E13: X
G14: E2
I15: D | R15: =Translation!A26&" (GH = H = FOH)" -> Sytuacja standardowa (GH = H = FOH)
M16: E1 | V16: =Translation!A28 -> Skład paneli i konstrukcja skrzydła jest zawsze rozpatrywane na podstawie FOH.
C23: 165
B25: =Translation!A32 -> Gniazdo CEE 7/3 lub CEE 7/5 | U25: GH
B26: =Translation!A33 -> 230V, 50Hz, ochrona za pomocą bezpiecznika 6A (10A) | U26: =
U27: H
U28: =
U29: FOH
R35: =Translation!A27&" (GH > H)" -> Sytuacja niestandardowa (GH > H) | W35: =Translation!A27&" (GH < H)" -> Sytuacja niestandardowa (GH < H)
F38: GH - 75 | O38: GH | P38: CEL
K39: K
AA46: H
U47: GH | Y47: GH
T48: H | U48: = | Y48: =
M49: 140 | U49: FOH | Y49: FOH
A56: =Translation!A22 -> Instalacja standardowa | G56: =Translation!A23 -> Instalacja alternatywna
A58: >= 95 | E58: >=95 | G58: 0 - 94 | J58: 0 - 94
X62: http://door-documents.com/en/installation-drawing-ext
X63: Guardy EXT
Z66: =Translation!A29 -> Wersja: | AA66: =Translation!A30 -> Format:
Z67: 1710 | AA67: A4

Sheet Translation (hidden)
A1: EXT
A2: =IF(EXT!D4=E2,1,IF(EXT!D4=F2,2,IF(EXT!D4=G2,3,IF(EXT!D4=H2,4,IF(EXT!D4=I2,5,IF(EXT!D4=J2,6,"Chyba")))))) -> 4 | E2: CZ | F2: EN | G2: DE | H2: PL | I2: FR | J2: NL
A3: =VLOOKUP(E3,E:J,$A$2,FALSE) -> Ogólna | E3: Obecná | F3: General | G3: Allgemeine | H3: Ogólna | I3: Hauteur | J3: Algemene
A4: wysokość [mm] | E4: výška [mm] | F4: height [mm] | G4: Höhe [mm] | H4: wysokość [mm] | I4: Générale [mm] | J4: hoogte [mm]
A5: Min wysokość stropu [mm] | E5: Min. výška stropu [mm] | F5: Min. height of ceiling [mm] | G5: Min. Deckenhöhe [mm] | H5: Min wysokość stropu [mm] | I5: Hauteur minimale du plafond [mm] | J5: Min. plafondhoogte [mm]
A6: Brama bez napędu | E6: Vrata bez motoru | F6: Manually operated | G6: Tor ohne Motor | H6: Brama bez napędu | I6: Porte sans moteur | J6: Deur zonder motor
A7: Brama z napędem | E7: Vrata s motorem | F7: Electrically operated | G7: Tor mit Motor | H7: Brama z napędem | I7: Porte avec moteur | J7: Garaged. met motor
A8: Wysokość stropu [mm] | E8: Výška stropu [mm] | F8: Height of ceiling [mm] | G8: Deckenhöhe [mm] | H8: Wysokość stropu [mm] | I8: Hauteur du plafond [mm] | J8: Plafondhoogte [mm]
A9: Wysokość do dolnej krawędzi profilu nadproża [mm] | E9: Výška ke spodní hraně překladového profilu [mm] | F9: Height to bottom edge of lintel profile [mm] | G9: Höhe zur unteren Kante des Sturzprofiles [mm] | H9: Wysokość do dolnej krawędzi profilu nadproża [mm] | I9: Hauteur jusqu'à l'arête inférieure du profilé de linteau [mm] | J9: Hoogte van de onderrand van het dwarsbalkprofiel [mm]
A10: Dolna krawędź w pełni otwartej bramy [mm] | E10: Spodní hrana plně otevřených vrat [mm] | F10: Bottom edge of fully open door [mm] | G10: Untere Kante des vollständig geöffneten Tors [mm] | H10: Dolna krawędź w pełni otwartej bramy [mm] | I10: Arête inférieure de la porte toute ouverte [mm] | J10: Onderste rand van een volledig geopende deur [mm]
A11: Dolna krawędź w pełni otwartej bramy (CPH) [mm] | E11: Spodní hrana plně otevřených vrat (CPH) [mm] | F11: Bottom edge of fully open door (CPH) [mm] | G11: Untere Kante des vollständig geöffneten Tors (CPH) [mm] | H11: Dolna krawędź w pełni otwartej bramy (CPH) [mm] | I11: Arête inférieure de la porte toute ouverte (CPH) [mm] | J11: Onderste rand van een volledig geopende deur (CPH) [mm]
A12: Głębokość prowadzenia [mm] | E12: Hloubka vedení [mm] | F12: Back room [mm] | G12: Führungstiefe [mm] | H12: Głębokość prowadzenia [mm] | I12: Profondeur du guidage [mm] | J12: Inbouwdiepte van de rails [mm]
A13: Głębokość prowadzenia (D) [mm] | E13: Hloubka vedení (D) [mm] | F13: Back room (D) [mm] | G13: Führungstiefe (D) [mm] | H13: Głębokość prowadzenia (D) [mm] | I13: Profondeur du guidage (D) [mm] | J13: Diepte van de geleiding (D) [mm]
A14: Długość napędu [mm] | E14: Délka pohonu [mm] | F14: Length of motor [mm] | G14: Antriebslänge [mm] | H14: Długość napędu [mm] | I14: Longueur de la propulsion [mm] | J14: Lengte van de aandrijving [mm]
A15: Długość napędu (X) [mm] | E15: Délka pohonu (X) [mm] | F15: Length of motor (X) [mm] | G15: Antriebslänge (X) [mm] | H15: Długość napędu (X) [mm] | I15: Longueur de la propulsion (X) [mm] | J15: Lengte van de aandrijving (X) [mm]
A16: Dolna krawędź prowadzenia poziomego [mm] | E16: Spodní hrana horizontálního vedení [mm] | F16: Bottom edge of horizontal tracks [mm] | G16: Untere Kante der Horizontalführung [mm] | H16: Dolna krawędź prowadzenia poziomego [mm] | I16: Arête inférieure du guidage horizontale [mm] | J16: Onderste rand van de horizontale rails [mm]
A17: Dolna krawędź prowadzenia poziomego (K) [mm] | E17: Spodní hrana horizontálního vedení (K) [mm] | F17: Bottom edge of horizontal tracks (K) [mm] | G17: Untere Kante der Horizontalführung (K) [mm] | H17: Dolna krawędź prowadzenia poziomego (K) [mm] | I17: Arête inférieure du guidage horizontale (K) [mm] | J17: Onderste rand van de horizontale rails (K) [mm]
A18: Punkt uchwycenia szyny napędu [mm] | E18: Kotvící bod lišty pohonu [mm] | F18: Hanging point for motor track [mm] | G18: Verankerungspunkt der Antriebsleiste [mm] | H18: Punkt uchwycenia szyny napędu [mm] | I18: Point d'ancrage de la glissière de propulsion [mm] | J18: Bevestigingspunt van de motorgeleidingsrail [mm]
A19: Punkt uchwycenia szyny napędu (E1) [mm] | E19: Kotvící bod lišty pohonu (E1) [mm] | F19: Hanging point for motor track (E1) [mm] | G19: Verankerungspunkt der Antriebsleiste (E1) [mm] | H19: Punkt uchwycenia szyny napędu (E1) [mm] | I19: Point d'ancrage de la glissière de propulsion (E1) [mm] | J19: Bevestigingspunt van de motorgeleidingsrail (E1) [mm]
A20: Punkt uchwycenia napędu [mm] | E20: Kotvící bod pohonu [mm] | F20: Hanging point for motor [mm] | G20: Verankerungspunkt des Antriebes [mm] | H20: Punkt uchwycenia napędu [mm] | I20: Point d'ancrage de la propulsion [mm] | J20: Bevestigingspunt van de aandrijvingsgeleidingsbalk [mm]
A21: Punkt uchwycenia napędu (E2) [mm] | E21: Kotvící bod pohonu (E2) [mm] | F21: Hanging point for motor (E2) [mm] | G21: Verankerungspunkt des Antriebes (E2) [mm] | H21: Punkt uchwycenia napędu (E2) [mm] | I21: Point d'ancrage de la propulsion (E2) [mm] | J21: Bevestigingsp. van de aandrijvingsgeleidingsbalk (E2) [mm]
A22: Instalacja standardowa | E22: Standardní montáž | F22: Standard installation | G22: Standardmontage | H22: Instalacja standardowa | I22: Assemblage standard | J22: Standaardmontage
A23: Instalacja alternatywna | E23: Alternativní montáž | F23: Alternative installation | G23: Alternative Montage | H23: Instalacja alternatywna | I23: Assemblage alternatif | J23: Alternatieve montage
A24: Wysokość otworu budowlanego [mm] | E24: Výška stavebního otvoru [mm] | F24: Clear opening height [mm] | G24: Höhe der Bauöffnung [mm] | H24: Wysokość otworu budowlanego [mm] | I24: Hauteur de la baie de construction [mm] | J24: Dagmaat hoogte [mm]
A25: Wysokość otworu budowlanego (H) [mm] | E25: Výška stavebního otvoru (H) [mm] | F25: Clear opening height (H) [mm] | G25: Höhe der Bauöffnung (H) [mm] | H25: Wysokość otworu budowlanego (H) [mm] | I25: Hauteur de la baie de construction (H) [mm] | J25: Dagmaat hoogte (H) [mm]
A26: Sytuacja standardowa | E26: Standardní situace | F26: Standard situation | G26: Standardsituation | H26: Sytuacja standardowa | I26: Situation standard | J26: Standaardsituatie
A27: Sytuacja niestandardowa | E27: Nestandardní situace | F27: Non-standard situation | G27: Ungewöhnliche Situation | H27: Sytuacja niestandardowa | I27: Situation hors de standard | J27: Niet-standaardsituaties
A28: Skład paneli i konstrukcja skrzydła jest zawsze rozpatrywane na podstawie FOH. | E28: Skladba panelů a design křídla je vždy řešen vůči FOH. | F28: Panel assembly and design of door leaf is always considered based on FOH. | G28: Die Paneelaufteilung und das Design des Torblattes wird immer auf der Basis von FOH-Mass gelöst. | H28: Skład paneli i konstrukcja skrzydła jest zawsze rozpatrywane na podstawie FOH. | I28: Assemblage de panneau et la conception de battant de porte est toujours considéré comme la base de FOH. | J28: Paneel samenstelling en complete opbouw van het deurblad wordt altijd gebaseerd op FOH.
A29: Wersja: | E29: Verze: | F29: Version: | G29: Version: | H29: Wersja: | I29: VERSION: | J29: Versie:
A30: Format: | E30: Formát: | F30: Sheet: | G30: Format: | H30: Format: | I30: FORMAT: | J30: Formaat:
A31: Położenie gniazda około 250 mm | E31: Pozice zásuvky, cca. 250 mm | F31: Position of socket, ca. 250 mm | G31: Die Position der Steckdose ca.250 mm | H31: Położenie gniazda około 250 mm | I31: La position de la prise électrique env. 250 mm | J31: Positie van Eurostopcontact CEE, ca. 250mm
A32: Gniazdo CEE 7/3 lub CEE 7/5 | E32: Zásuvka typu CEE 7/3 nebo CEE 7/5 | F32: CEE 7/3 or CEE 7/5 socket | G32: Steckdose CEE 7/3 oder CEE 7/5 | H32: Gniazdo CEE 7/3 lub CEE 7/5 | I32: Prise CEE 7/3 ou CEE 7/5 | J32: Eurostopcontact CEE 7/3 of CEE 7/5
A33: 230V, 50Hz, ochrona za pomocą bezpiecznika 6A (10A) | E33: 230V, 50Hz, jištěno 6 A (10 A) jističem | F33: 230V, 50Hz, protect by 6 A (10 A) circuit breaker | G33: 230V, 50Hz, Sicherung 6 A (10 A) mit Schutzschalter | H33: 230V, 50Hz, ochrona za pomocą bezpiecznika 6A (10A) | I33: 230V, 50Hz, assuré par un disjoncteur 6 A (10 A) | J33: 230V, 50Hz, afgezekerd met 6A (10A)
A34: Szerokość otworu [mm] | E34: Šířka stavebního otvoru [mm] | F34: Opening width [mm] | G34: Lichte Breite [mm] | H34: Szerokość otworu [mm] | I34: Largeur de baie [mm] | J34: Opening breedte
A35: Szerokość otworu (W) [mm] | E35: Šířka stavebního otvoru (W) [mm] | F35: Opening width (W) [mm] | G35: Lichte Breite (W) [mm] | H35: Szerokość otworu (W) [mm] | I35: Largeur de baie (W) [mm] | J35: Opening breedte (W) [mm]
A36: Sterowanie | E36: Ovládání | F36: Operated | G36: Bedienung | H36: Sterowanie | I36: Commande | J36: Bediening
A37: ręcznie wykonany | E37: ručně | F37: manually | G37: händisch | H37: ręcznie wykonany | I37: manuelle | J37: handbediend
A38: elektrycznie | E38: elektricky | F38: electrical | G38: elektrisch | H38: elektrycznie | I38: motorisée | J38: elektrisch
A39: Wysokość nadproża [mm] | E39: Výška nádpraží [mm] | F39: Height of lintel [mm] | G39: Freiraum über Sturz [mm] | H39: Wysokość nadproża [mm] | I39: Retombée de linteau [mm] | J39: Hoogte van de latei [mm]
A40: Wysokość nadproża (F) [mm] | E40: Výška nádpraží (F) [mm] | F40: Height of lintel (F) [mm] | G40: Freiraum über Sturz (F) [mm] | H40: Wysokość nadproża (F) [mm] | I40: Retombée de linteau (F) [mm] | J40: Hoogte van de latei (F) [mm]
A41: Rodzaj napędu | E41: Typ pohonu | F41: Type of motor | G41: Der Typ des Antriebs | H41: Rodzaj napędu | I41: Type de motor | J41: Type motor
A42: Informacje o napędu | E42: Informace o motoru | F42: Information regarding motor | G42: Die Information über den Antrieb | H42: Informacje o napędu | I42: Information concernant le moteur | J42: Informatie betreffende de motor
A43: Umieszczenie górnego uszczelnienia | E43: Umístění horního těsnění | F43: Placement of top sealing | G43: Die Unterbringung der Oberdichtung | H43: Umieszczenie górnego uszczelnienia | I43: Emplacement du joint d'étanchéité | J43: Plaatsing van de top afdichting
A44: Na nadprožu | E44: na překladu | F44: at lintel | G44: Auf dem Sturz | H44: Na nadprožu | I44: au linteau | J44: op de latei
A45: Na górnej częśći | E45: na horní sekci | F45: on the top section | G45: Auf der Obersektion | H45: Na górnej częśći | I45: sur le panneau supérieur | J45: boven op top paneel

Sheet Selections (hidden)
A1: Výběr jazyka | C1: LHF-C
A2: CZ
A3: EN | C3: =Translation!B36 -> 0 | E3: Hloubka vedení | I3: =Translation!B41 -> 0 | K3: Délka pohonu | N3: Kotvící bod pohonu
A4: DE
A5: PL | C5: =Translation!B37 -> 0 | E5: 0 | F5: =2575 -> 2575 | I5: GTA 71x | K5: =I5 -> GTA 71x | N5: =I5 -> GTA 71x
A6: NL | C6: =Translation!B38 -> 0 | E6: 2001 | F6: 2700 | I6: RUN 600 | K6: 0 | L6: 3540 | N6: 0 | O6: 3350
A7: FR | E7: 2126 | F7: 2825 | K7: 2376 | L7: 4240 | N7: 2376 | O7: 4060
E8: 2251 | F8: 2950
E9: 2376 | F9: 3075 | K9: =I6 -> RUN 600 | N9: =I6 -> RUN 600
E10: 2501 | F10: 3325 | K10: 0 | L10: 3100 | N10: 0 | O10: 2950
E11: 2751 | F11: 3575 | K11: 2126 | L11: 4240 | N11: 2126 | O11: 4060
C13: LHR-C
C15: =Translation!C36 -> 0 | E15: Hloubka vedení | I15: =Translation!C41 -> 0 | K15: Délka pohonu | N15: Kotvící bod pohonu
C17: =Translation!C37 -> 0 | E17: 0 | F17: =2575+120 -> 2695 | I17: GTA 71x | K17: =I17 -> GTA 71x | N17: =I17 -> GTA 71x
C18: =Translation!C38 -> 0 | E18: 2001 | F18: =2700+120 -> 2820 | I18: RUN 600 | K18: 0 | L18: 3540 | N18: 0 | O18: 3350
E19: 2126 | F19: =2825+120 -> 2945 | K19: 2376 | L19: 4240 | N19: 2376 | O19: 4060
C20: Umístění horního těsnění | E20: 2251 | F20: =2950+120 -> 3070 | I20: =Translation!C40 -> 0
E21: 2376 | F21: =3075+120 -> 3195 | H21: ='[1]LHR-C'!J6 -> 0 | I21: =IF(H21=Selections!C17,90,IF(H21=Selections!C18,125,"Error")) -> 90 | K21: =I18 -> RUN 600 | N21: =I18 -> RUN 600
C22: =Translation!C44 -> 0 | E22: 2501 | F22: =3325+120 -> 3445 | H22: ='[1]LHR-C'!J8 -> 0 | I22: =IF(H22=Selections!C22,0,IF(H22=Selections!C23,35,"Error")) -> 0 | K22: 0 | L22: 3100 | N22: 0 | O22: 2950
C23: =Translation!C45 -> 0 | E23: 2751 | F23: =3575+120 -> 3695 | K23: 2126 | L23: 4240 | N23: 2126 | O23: 4060
